bitfinex/quotes_ETHUSD_20241116
["timestamp","ask_amount","ask_price","bid_price","bid_amount"]
[1731738441686,0.03315906,3121.8,3121.7,0.875]
[1731738441887,3.23206,3122.0,3121.7,0.875]
[1731738442097,9.5319103,3122.2,3121.7,0.875]
[1731738442249,4.85162896,3122.2,3121.7,0.875]
[1731738442444,0.03322717,3122.1,3121.7,0.875]
[1731738442755,0.03322717,3122.1,3121.8,0.9628]
[1731738443289,0.03322717,3122.1,3121.9,3.20317]
[1731738443457,0.03322717,3122.1,3121.8,0.9628]
[1731738443458,0.03322717,3122.1,3122.0,3.20307]
[1731738443793,0.03322717,3122.1,3121.9,3.20315]
[1731738444089,0.03322717,3122.1,3121.9,0.504117]
[1731738444989,0.03322717,3122.1,3122.0,3.20307]
[1731738447953,0.03322717,3122.1,3122.0,4.14237]
[1731738448154,0.291105,3122.2,3122.0,4.14237]
[1731738448392,0.291105,3122.2,3122.1,0.4646487]
[1731738450477,0.291105,3122.2,3121.9,0.504117]
[1731738450796,0.291105,3122.2,3121.9,3.707277]
[1731738451665,0.291105,3122.2,3121.9,6.910437]
[1731738451901,0.291105,3122.2,3121.9,3.707277]
[1731738452060,0.291105,3122.2,3121.9,3.70600686]
[1731738452263,0.291105,3122.2,3122.0,3.66758069]
[1731738453659,0.03338055,3122.1,3122.0,3.66758069]
[1731738453870,0.291105,3122.2,3122.0,3.66758069]
[1731738454074,0.03338055,3122.1,3122.0,0.46453069]
[1731738454291,0.03338055,3122.1,3121.8,3.9393]
[1731738454601,0.03338055,3122.1,3121.9,3.20315]
[1731738454970,0.03338055,3122.1,3122.0,3.26712459]
[1731738455305,0.03338055,3122.1,3122.0,4.20047]
[1731738455455,0.291105,3122.2,3122.0,4.20047]
[1731738455655,0.03338832,3122.1,3122.0,4.20047]
[1731738456059,0.03338832,3122.1,3122.0,0.9974]
[1731738456275,0.03338832,3122.1,3122.0,4.20047]
[1731738457721,0.03338832,3122.1,3121.7,0.875]
[1731738458776,0.03338832,3122.1,3121.8,0.9806]
[1731738458971,0.03338832,3122.1,3121.9,0.57636058]
[1731738459206,0.03338832,3122.1,3121.9,3.71545108]
[1731738460175,0.03338832,3122.1,3121.9,6.91855108]
[1731738460468,0.03338832,3122.1,3121.9,0.51230108]
[1731738460672,0.03338832,3122.1,3121.7,0.875]
[1731738460913,0.03338832,3122.1,3121.8,3.20319]
[1731738461794,0.03338832,3122.1,3121.9,3.20317]
[1731738462620,0.03338832,3122.1,3121.7,0.875]
[1731738462962,0.03338832,3122.1,3121.7,3.875]
[1731738463411,0.03338832,3122.1,3121.7,3.9390606]
[1731738463615,0.03338832,3122.1,3121.7,4.1424306]
[1731738464710,0.03338832,3122.1,3121.7,4.07837]
[1731738465017,0.03338832,3122.1,3121.7,4.1424306]
[1731738466413,0.03338832,3122.1,3121.7,4.14243057]
[1731738466624,0.03338832,3122.1,3121.7,4.07837]
[1731738466807,0.03338832,3122.1,3121.7,0.875]
[1731738470687,3.23635832,3122.1,3121.7,0.875]
[1731738470885,0.0286,3122.0,3121.7,0.875]
[1731738471103,3.23168,3122.0,3121.7,0.875]
[1731738471298,3.52967583,3121.9,3121.7,0.875]
[1731738471601,3.56300209,3121.9,3121.7,0.875]
[1731738472405,4.56061396,3121.8,3121.7,0.875]
[1731738472835,4.59388084,3121.8,3121.7,0.875]
[1731738473010,5.40623651,3121.8,3121.7,0.875]
[1731738474528,10.07754342,3121.8,3121.7,0.875]
[1731738475028,5.40623651,3121.8,3121.7,0.875]
[1731738481631,3.23654688,3121.8,3121.7,0.875]
[1731738483750,0.03326688,3121.8,3121.7,0.875]
[1731738484056,3.493995,3122.2,3121.7,1.8131]
[1731738484215,0.03312569,3121.8,3121.7,1.8131]
[1731738484402,3.493995,3122.2,3121.7,1.8131]
[1731738484606,0.03312569,3121.8,3121.7,1.8131]
[1731738484813,3.493995,3122.2,3121.7,2.314757]
[1731738485015,0.03312569,3121.8,3121.7,1.8131]
[1731738485239,3.493995,3122.2,3121.7,1.8131]
[1731738485448,0.03312569,3121.8,3121.7,5.01648]
[1731738485649,0.291105,3122.2,3121.7,4.14148]
[1731738486014,0.03321271,3122.1,3121.7,4.14148]
[1731738486249,0.03321271,3122.1,3121.7,4.875975]
[1731738490149,0.03321271,3122.1,3121.8,3.20327]
[1731738490937,0.03321271,3122.1,3122.0,3.20307]
[1731738491253,0.03330943,3122.1,3122.0,3.20307]
[1731738493060,0.291105,3122.2,3122.0,3.20307]
[1731738493266,0.291105,3122.2,3122.1,0.418177]
[1731738493466,0.291105,3122.2,3121.9,0.9787]
[1731738493806,0.291105,3122.2,3121.9,4.18177]
[1731738494099,0.291105,3122.2,3121.9,0.9787]
[1731738494275,0.291105,3122.2,3122.0,3.203]
[1731738496061,0.291105,3122.2,3121.9,0.9787]
[1731738496268,0.291105,3122.2,3121.9,4.6735045]
[1731738497200,0.291105,3122.2,3122.0,3.20306]
[1731738498015,0.291105,3122.2,3121.9,1.4703445]
[1731738498216,0.291105,3122.2,3121.9,4.6734945]
[1731738498384,0.291105,3122.2,3122.0,3.20306]
[1731738498579,0.291105,3122.2,3121.9,4.6735045]
[1731738499332,0.291105,3122.2,3121.9,4.18186]
[1731738499885,3.493975,3122.2,3121.6,4.7902]
[1731738500131,3.493975,3122.2,3121.6,4.99367]
[1731738500132,0.291105,3122.2,3121.6,4.99367]
[1731738501407,0.291105,3122.2,3121.7,3.20336]
[1731738501796,0.291105,3122.2,3121.6,4.99367]
[1731738502027,0.291105,3122.2,3121.7,3.20336]
[1731738502587,3.494015,3122.2,3121.6,2.589567]
[1731738503031,3.494015,3122.2,3121.6,5.793007]
[1731738504139,0.291105,3122.2,3121.7,3.20331]
[1731738504353,1.0936319,3122.2,3121.6,0.875]
[1731738504660,3.20304,3122.1,3121.6,0.875]
[1731738504812,3.20304,3122.1,3121.6,1.7902]
[1731738505506,0.291105,3122.2,3121.6,1.7902]
[1731738505861,0.291105,3122.2,3122.0,0.9152]
[1731738506153,0.291105,3122.2,3122.1,3.20297]
[1731738506355,0.291105,3122.2,3122.1,3.935095]
[1731738512107,0.291105,3122.2,3122.1,0.732125]
[1731738512351,0.291105,3122.2,3122.1,3.20297]
[1731738512846,0.32442935,3122.2,3122.1,3.20297]
[1731738513305,0.291105,3122.2,3122.1,3.20297]
[1731738513506,0.32442935,3122.2,3122.1,3.20297]
[1731738514922,0.291105,3122.2,3122.1,3.20297]
[1731738515156,0.291105,3122.2,3122.1,3.94187849]
[1731738515506,0.291105,3122.2,3122.1,7.86077849]
[1731738515729,0.291105,3122.2,3122.1,9.73951245]
[1731738516170,4.67253359,3124.1,3123.2,3.20177]
[1731738516326,0.03378275,3124.0,3123.4,3.20163]
[1731738516524,6.00126755,3124.3,3123.4,3.20163]
[1731738516525,3.20099,3124.1,3123.4,3.20163]
[1731738516756,0.03378275,3124.0,3123.4,3.20163]
[1731738517851,3.23481275,3124.0,3123.4,3.20163]
[1731738518065,0.03378275,3124.0,3123.5,3.2015]
[1731738518268,0.03378275,3124.0,3123.6,3.2014]
[1731738518434,3.20072,3124.3,3123.6,3.2014]
[1731738518635,0.0327678,3123.9,3123.6,3.2014]
[1731738518942,4.52926396,3124.5,3123.7,0.06402027]
[1731738518943,3.20053,3124.5,3123.7,0.06402027]
[1731738519274,3.20053,3124.5,3123.7,3.26531027]
[1731738519460,3.23349117,3124.4,3123.7,3.26531027]
[1731738520534,3.23349117,3124.4,3123.8,0.9189]
[1731738521079,0.03288117,3124.4,3123.9,3.20112]
[1731738521239,0.03288117,3124.4,3124.0,3.20102]
[1731738521439,3.20032,3124.7,3124.0,3.20102]
[1731738521639,0.0328585,3124.3,3124.0,3.20102]
[1731738521937,0.03283583,3124.2,3124.0,3.20102]
[1731738522137,0.43316222,3124.6,3124.0,3.20102]
[1731738522340,0.03290384,3124.5,3124.0,3.20102]
[1731738522732,0.03178438,3124.4,3124.0,3.20102]
[1731738522939,3.20029,3124.8,3124.0,3.20102]
[1731738523164,0.03185238,3124.7,3124.0,3.20102]
[1731738523505,0.03185238,3124.7,3124.1,3.20082]
[1731738523800,3.20018,3124.9,3124.0,3.20102]
[1731738524006,0.32717543,3124.8,3124.0,3.20102]
[1731738524209,0.03185238,3124.7,3124.2,3.20081]
[1731738524574,0.03185238,3124.7,3123.8,4.12011]
[1731738524772,0.03185238,3124.7,3124.1,3.2009]
[1731738526202,3.27158427,3125.0,3124.3,3.20071]
[1731738526400,0.35905614,3124.9,3124.3,4.16131]
[1731738526570,0.03189771,3124.9,3124.4,0.06400631]
[1731738526770,0.03189771,3124.9,3124.6,2.925233]
[1731738527300,0.03189771,3124.9,3124.6,2.98923381]
[1731738527705,0.03189771,3124.9,3124.6,2.925233]
[1731738527904,0.03189771,3124.9,3124.4,3.2006]
[1731738528193,0.03189771,3124.9,3124.5,3.0]
[1731738529519,0.03189771,3124.9,3124.5,6.20049]
[1731738529716,0.03189771,3124.9,3124.6,3.2004]
[1731738529890,0.03189771,3124.9,3124.6,3.26440092]
[1731738530286,0.03189771,3124.9,3124.6,3.2004]
[1731738530585,0.03189771,3124.9,3124.8,3.2002]
[1731738530815,0.03189771,3124.9,3124.8,4.1456]
[1731738531444,0.03189771,3124.9,3124.8,0.9454]
[1731738532939,3.20023,3124.8,3124.2,3.20074]
[1731738533097,3.8506022,3124.8,3124.2,3.20074]
[1731738533298,0.03025089,3124.7,3124.2,3.20074]
[1731738534333,0.03025089,3124.7,3124.3,3.0]
[1731738534539,0.03025089,3124.7,3124.3,6.2007]
[1731738534741,3.27159427,3125.0,3124.3,6.2007]
[1731738534912,0.0301783,3124.6,3124.3,6.2007]
[1731738535236,0.03015563,3124.5,3124.3,7.231601]
[1731738535441,3.20031,3124.7,3124.2,3.0]
[1731738535642,0.03013296,3124.4,3124.2,3.0]
[1731738535840,3.20031,3124.7,3124.2,3.710831]
[1731738536046,0.0302016,3124.6,3124.2,3.0]
[1731738536741,0.0302016,3124.6,3124.2,3.20081]
[1731738536924,3.20032,3124.7,3124.3,3.0]
[1731738537116,0.03017893,3124.5,3124.1,3.9074]
[1731738537305,3.19989,3125.1,3125.0,6.72820573]
[1731738537635,3.839848,3125.1,3125.0,6.72820573]
[1731738541755,6.849848,3125.1,3125.0,6.72820573]
[1731738542065,7.409848,3125.1,3125.0,6.72820573]
[1731738542615,7.409848,3125.1,3125.0,0.32820573]
[1731738542952,7.409848,3125.1,3125.0,0.04541171]
[1731738544166,6.839848,3125.1,3125.0,0.04541171]
[1731738545514,3.839848,3125.1,3125.0,0.04541171]
[1731738551078,3.86997758,3125.1,3125.0,0.04541171]
[1731738553175,0.03012958,3125.1,3125.0,0.04541171]
[1731738553535,3.19969,3125.3,3125.0,0.04541171]
[1731738553956,0.03016444,3125.2,3125.0,0.04541171]
[1731738554185,3.19969,3125.3,3125.0,0.04541171]
[1731738554385,0.03016444,3125.2,3125.0,0.04541171]
[1731738554877,0.03014178,3125.1,3125.0,0.04541171]
[1731738555252,3.19969,3125.3,3125.0,0.04541171]
[1731738555435,0.03016444,3125.2,3125.0,0.04541171]
[1731738555784,0.02992868,3125.1,3125.0,0.04541171]
[1731738555949,3.19982,3125.2,3125.0,0.04541171]
[1731738556351,0.02992868,3125.1,3125.0,0.04541171]
[1731738556571,3.22981868,3125.1,3125.0,0.04541171]
[1731738556738,3.87276255,3125.1,3125.0,0.04541171]
[1731738558993,0.02992868,3125.1,3125.0,0.04541171]
[1731738559860,3.22981868,3125.1,3125.0,0.04541171]
[1731738562104,0.02992868,3125.1,3125.0,0.04541171]
[1731738562456,3.1997,3125.3,3125.0,0.04541171]
[1731738562681,0.03005457,3125.2,3125.0,0.04541171]
[1731738562997,3.1997,3125.3,3125.0,0.04541171]
[1731738563203,3.22984457,3125.2,3125.0,0.04541171]
[1731738564479,0.03005457,3125.2,3125.0,0.04541171]
[1731738564871,4.29366186,3125.3,3125.0,0.04541171]
[1731738565065,0.03003192,3125.1,3125.0,0.04541171]
[1731738565294,3.1997,3125.3,3125.0,0.04541171]
[1731738565506,0.03003192,3125.1,3125.0,0.04541171]
[1731738565674,3.1997,3125.3,3125.0,0.04541171]
[1731738566203,1.665,3125.4,3125.0,0.04541171]
[1731738566204,0.03005457,3125.2,3125.0,0.04541171]
[1731738566493,1.665,3125.4,3125.0,0.04541171]
[1731738566800,4.86459,3125.4,3125.0,0.04541171]
[1731738566959,0.03832194,3125.3,3125.0,0.04541171]
[1731738567969,4.8646,3125.4,3125.0,0.04541171]
[1731738568601,1.665,3125.4,3125.0,0.04541171]
[1731738573418,1.665,3125.4,3125.1,3.19988]
[1731738573565,1.665,3125.4,3125.1,0.8886]
[1731738577119,1.665,3125.4,3125.1,4.08849]
[1731738577295,1.665,3125.4,3125.2,3.19972]
[1731738577503,1.665,3125.4,3125.3,3.19969]
[1731738577810,1.665,3125.4,3125.3,4.08829]
[1731738587360,0.55,3126.2,3125.3,4.08829]
[1731738587567,1.32627124,3126.0,3125.4,3.608329]
[1731738589450,4.52528124,3126.0,3125.4,3.608409]
[1731738591282,4.52528124,3126.0,3125.4,3.19958]
[1731738592965,0.55,3125.9,3125.4,3.19958]
[1731738593950,3.19959,3125.4,3125.0,0.04541171]
[1731738596682,0.55,3125.5,3125.0,0.04541171]
[1731738596859,3.74951,3125.5,3125.0,0.04541171]
[1731738598091,0.55,3125.5,3125.0,0.04541171]
[1731738598295,3.19959,3125.4,3125.0,0.04541171]
[1731738600094,0.55,3125.5,3125.0,0.04541171]
[1731738600301,0.55,3125.5,3125.0,3.24540171]
[1731738600497,0.55,3125.5,3125.0,3.97514588]
[1731738600707,3.74949,3125.5,3125.0,0.77515588]
[1731738601163,3.19932,3125.7,3125.2,0.8818]
[1731738602067,9.20729138,3125.7,3125.2,0.8818]
[1731738602267,4.52559124,3125.7,3125.2,0.8818]
[1731738603414,3.19932,3125.7,3125.2,1.36747659]
[1731738603601,4.68170014,3125.8,3125.3,3.19965]
[1731738603602,0.55,3125.8,3125.3,3.19965]
[1731738603807,3.74918,3125.8,3125.2,1.36747659]
[1731738603980,3.74918,3125.8,3125.3,0.45672866]
[1731738604306,3.74921,3125.8,3125.3,0.45672866]
[1731738605303,3.74921,3125.8,3125.2,0.8818]
[1731738605677,3.1993,3125.7,3125.2,0.8818]
[1731738606800,3.19949,3125.5,3125.2,0.8818]
[1731738607302,3.1993,3125.7,3125.2,0.8818]
[1731738608460,3.19944,3125.6,3125.2,0.8818]
[1731738610512,3.19961,3125.4,3125.2,0.8818]
[1731738611079,3.19961,3125.4,3125.0,0.92311171]
[1731738611687,0.55,3125.3,3125.0,0.92311171]
[1731738612019,3.19989,3125.2,3125.0,0.04541171]
[1731738612493,3.19989,3125.1,3125.0,0.04541171]
[1731738613084,3.89484,3125.2,3125.0,0.04541171]
[1731738613316,3.19989,3125.1,3125.0,0.04541171]
[1731738615190,3.74972,3125.3,3125.0,0.04541171]
[1731738616339,7.88632733,3125.5,3125.1,0.8731]
[1731738616483,3.19946,3125.6,3125.1,0.8731]
[1731738616687,3.19949,3125.5,3125.1,0.8731]
[1731738616887,3.19949,3125.5,3125.1,1.28495217]
[1731738617089,3.1996,3125.4,3125.1,0.8731]
[1731738618313,11.08573733,3125.6,3125.1,0.8731]
[1731738618942,7.88663373,3125.6,3125.1,0.8731]
[1731738619108,3.19949,3125.5,3125.0,0.04541171]
[1731738619316,7.88663373,3125.6,3125.1,0.8765]
[1731738619511,3.19946,3125.6,3125.1,0.8765]
[1731738620612,3.1995,3125.5,3125.1,0.8765]
[1731738620798,3.19959,3125.4,3125.1,0.8765]
[1731738621737,0.55,3125.3,3125.0,0.04541171]
[1731738622142,3.19989,3125.1,3125.0,0.04541171]
[1731738623707,4.52616124,3125.1,3125.0,0.04541171]
[1731738624062,3.19989,3125.1,3125.0,0.04541171]
[1731738629061,3.19949,3125.5,3125.0,0.04541171]
[1731738629247,3.19949,3125.5,3125.1,0.8782]
[1731738629453,3.19949,3125.5,3125.1,1.29056917]
[1731738629675,3.1993,3125.7,3125.1,4.49043917]
[1731738630949,3.1993,3125.7,3125.2,0.8782]
[1731738632773,4.52536124,3125.9,3125.2,0.8782]
[1731738632774,3.74918,3125.8,3125.2,4.07797]
[1731738632980,3.74918,3125.8,3125.3,0.76902092]
[1731738633183,3.19928,3125.7,3125.3,0.76902092]
[1731738633674,3.74918,3125.8,3125.3,0.76902092]
[1731738634177,3.19909,3125.9,3125.3,3.96870092]
[1731738634382,3.19909,3125.9,3125.4,0.8533]
[1731738635737,3.749,3126.0,3125.4,0.8533]
[1731738636590,3.749,3126.0,3125.4,4.05288]
[1731738638662,1.32627124,3125.9,3125.4,0.8533]
[1731738638884,4.52537124,3125.9,3125.4,1.258608]
[1731738642090,4.52537124,3125.9,3125.4,4.458108]
[1731738642091,1.32627124,3125.9,3125.4,4.458108]
[1731738642397,4.52536124,3125.9,3125.4,1.258608]
[1731738642693,4.52536124,3125.9,3125.4,0.8533]
[1731738645551,3.19919,3125.8,3125.4,0.8533]
[1731738645951,4.52536124,3125.9,3125.4,0.8533]
[1731738648705,3.1992,3125.8,3125.4,0.8533]
[1731738649204,3.19948,3125.5,3125.1,0.8397]
[1731738649364,3.65223512,3125.4,3125.1,0.8397]
[1731738649565,3.19966,3125.4,3125.1,0.8397]
[1731738650008,3.19951,3125.5,3125.1,0.8397]
[1731738650175,1.32627124,3125.6,3125.1,0.8397]
[1731738650507,0.55,3125.5,3125.1,0.8397]
[1731738650662,3.74949,3125.5,3125.1,0.8397]
[1731738651188,3.19959,3125.4,3125.1,0.8397]
[1731738651506,3.19959,3125.4,3125.0,0.04541171]
[1731738651507,3.19989,3125.1,3125.0,0.04541171]
[1731738657412,3.74989,3125.1,3125.0,0.04541171]
[1731738659495,3.74989,3125.1,3125.0,0.91211171]
[1731738661723,3.74989,3125.1,3125.0,0.04541171]
[1731738663925,0.55,3125.2,3125.0,0.04541171]
[1731738664115,0.55,3125.2,3125.1,0.8667]
[1731738664401,3.74979,3125.2,3125.0,0.04541171]
[1731738664614,3.74989,3125.1,3125.0,0.04541171]
[1731738665229,4.57748512,3125.1,3125.0,0.04541171]
[1731738666926,3.0,3125.0,3123.6,0.8667]
[1731738667122,0.55,3124.1,3123.7,0.23914566]
[1731738667444,0.55,3124.1,3123.8,0.23914566]
[1731738667648,0.55,3124.1,3123.6,0.8667]
[1731738667649,0.55,3124.1,3123.9,0.23914566]
[1731738667805,0.55,3124.1,3123.6,4.06811]
[1731738668005,0.55,3124.1,3123.7,0.23904203]
[1731738668228,0.55,3124.1,3123.8,0.23904203]
[1731738668450,0.55,3124.1,3123.6,4.795067]
[1731738668451,0.55,3124.3,3123.9,1.06964203]
[1731738668749,3.75078,3124.3,3124.0,0.23894434]
[1731738668916,1.32627124,3124.2,3123.4,0.8306]
[1731738669121,0.55,3123.6,3123.5,0.23897592]
[1731738669318,0.55,3123.6,3123.4,0.8306]
[1731738669536,0.55,3123.8,3123.4,0.8306]
[1731738669854,0.55,3123.6,3123.5,0.23883331]
[1731738670048,1.32627124,3124.0,3123.4,0.8306]
[1731738670049,0.55,3123.8,3123.4,0.8306]
[1731738670258,0.55,3123.5,3123.4,0.8306]
[1731738670750,3.75133,3123.7,3123.4,0.8306]
[1731738671512,0.55,3123.7,3123.4,0.8306]
[1731738671912,3.20113,3123.9,3123.4,0.8306]
[1731738672150,3.20127,3123.8,3123.4,0.8306]
[1731738672951,0.01,3124.6,3123.4,1.24024693]
[1731738672952,3.2011,3124.0,3123.4,1.24024693]
[1731738673157,5.07742124,3123.9,3123.4,0.8306]
[1731738674955,3.20057,3124.5,3123.4,0.8306]
[1731738674956,0.55,3123.6,3123.4,0.8306]
[1731738676427,3.75145,3123.6,3123.4,0.8306]
[1731738676951,0.55,3123.6,3123.4,0.8306]
[1731738679820,1.87627124,3124.1,3123.4,0.8306]
[1731738680463,0.55,3123.9,3123.4,0.8306]
[1731738680667,3.75114,3123.9,3123.6,0.8831]
[1731738680956,0.55,3123.9,3123.6,0.8831]
[1731738681164,3.75114,3123.9,3123.6,0.8831]
[1731738681721,0.55,3123.7,3123.6,0.8831]
[1731738681921,5.07760124,3123.7,3123.6,0.8831]
[1731738682143,0.55,3123.4,3123.1,0.8831]
[1731738683168,3.75164,3123.4,3123.1,0.8831]
[1731738683965,0.55,3123.2,3122.6,3.20239]
[1731738684263,5.07839124,3123.0,3122.7,0.23864355]
[1731738684425,5.07839124,3123.0,3122.5,0.8831]
[1731738684426,1.87627124,3123.0,3122.5,0.8831]
[1731738684628,0.55,3122.8,3122.6,0.23861419]
[1731738684858,0.55,3122.8,3122.5,0.8831]
[1731738685228,0.55,3122.8,3122.6,0.23858724]
[1731738685552,0.55,3122.9,3122.5,0.8831]
[1731738685943,0.55,3122.9,3122.5,4.08558]
[1731738686372,0.55,3122.9,3122.6,0.2385798]
[1731738686677,0.55,3122.9,3122.5,0.8831]
[1731738687170,0.55,3122.9,3122.6,0.23857116]
[1731738687398,0.55,3122.9,3122.5,3.8831]
[1731738687730,0.55,3122.9,3122.6,0.23856784]
[1731738687925,0.55,3122.9,3122.5,3.8831]
[1731738688128,0.55,3122.9,3122.6,0.2385674]
[1731738688358,0.55,3122.9,3122.5,3.8831]
[1731738688599,0.55,3122.9,3122.6,0.23858277]
[1731738688877,0.55,3122.9,3122.5,7.08565]
[1731738689076,0.55,3122.9,3122.6,3.44102822]
[1731738689243,1.87627124,3123.2,3122.7,0.9082]
[1731738689576,3.75185,3123.2,3122.7,0.9082]
[1731738690068,5.07812124,3123.2,3122.7,0.9082]
[1731738691571,0.55,3123.0,3122.7,0.9082]
[1731738695983,0.55,3122.8,3122.4,3.0]
[1731738696290,0.55,3122.8,3122.5,0.8587]
[1731738696644,0.55,3122.7,3122.5,0.8587]
[1731738696851,3.75217,3122.9,3122.5,0.8587]
[1731738697086,0.55,3122.9,3122.5,0.8587]
[1731738699283,3.75216,3122.9,3122.5,0.8587]
[1731738699451,0.55,3122.7,3122.5,0.8587]
[1731738707322,0.55,3122.7,3122.3,3.20274]
[1731738709314,0.55,3122.7,3122.4,3.20265]
[1731738709913,0.55,3122.9,3122.4,3.20265]
[1731738710128,0.55,3123.2,3122.6,0.8597]
[1731738710408,3.20124,3123.8,3123.0,0.8597]
[1731738710607,4.52760124,3123.7,3123.1,0.406182]
[1731738710769,4.52760124,3123.7,3123.1,3.608112]
[1731738711171,1.32627124,3123.5,3123.1,0.406182]
[1731738711412,3.20164,3123.4,3123.1,0.406182]
[1731738711609,3.2015,3123.6,3123.0,4.06172]
[1731738711775,1.32627124,3123.6,3123.1,3.20192]
[1731738712171,1.32627124,3123.6,3123.1,3.61448555]
[1731738712378,1.32627124,3123.6,3123.2,3.20183]
[1731738712728,0.55,3123.7,3123.2,3.20183]
[1731738712892,0.55,3123.7,3123.1,3.67852102]
[1731738713098,0.55,3123.7,3123.4,0.8857]
[1731738714892,0.55,3124.0,3123.5,3.20152]
[1731738715823,0.55,3124.1,3123.6,3.20142]
[1731738716121,1.87627124,3124.1,3123.6,3.20142]
[1731738716331,1.32627124,3124.4,3123.7,0.94972645]
[1731738716622,4.52696124,3124.4,3123.7,4.08698]
[1731738716778,3.20073,3124.3,3123.7,4.08702]
[1731738716980,1.32627124,3124.4,3123.7,4.08702]
[1731738717305,4.52691124,3124.4,3123.7,4.08694]
[1731738717520,4.52691124,3124.4,3123.7,4.5673216]
[1731738717684,0.55,3124.3,3123.7,4.5673216]
[1731738717885,3.75074,3124.3,3123.7,4.5673216]
[1731738718887,3.20085,3124.2,3123.7,1.3660816]
[1731738719200,0.55,3124.1,3123.7,1.3660816]
[1731738719398,3.75099,3124.1,3123.7,1.3660816]
[1731738719590,3.75099,3124.1,3123.7,0.8857]
[1731738722002,0.55,3124.1,3123.7,0.8857]
[1731738722183,0.55,3124.1,3123.7,4.08702]
[1731738722391,6.40109,3124.5,3123.7,4.08702]
[1731738722392,5.07691124,3124.4,3123.7,4.08702]
[1731738723246,3.75044,3124.6,3123.8,0.8835]
[1731738723533,3.20051,3124.5,3123.9,3.20105]
[1731738724236,1.32627124,3124.4,3123.8,0.8835]
[1731738724433,1.32627124,3124.4,3123.9,3.2011]
[1731738724736,0.55,3124.3,3123.8,0.8835]
[1731738724942,0.55,3124.1,3123.8,0.8835]
[1731738727838,0.55,3124.2,3123.8,1.591979]
[1731738728033,3.20051,3124.5,3123.8,4.793199]
[1731738728034,1.87627124,3124.4,3123.8,4.793199]
[1731738728194,5.07691124,3124.4,3123.8,1.591979]
[1731738728401,1.87627124,3124.4,3123.8,1.591979]
[1731738728594,0.55,3124.2,3123.8,1.591979]
[1731738728815,0.55,3123.9,3123.8,0.8835]
[1731738729022,0.55,3123.9,3123.3,0.835]
[1731738729023,3.20132,3123.8,3123.3,0.835]
[1731738729240,4.52759124,3123.8,3123.4,0.403683]
[1731738729446,1.32627124,3123.8,3123.4,0.403683]
[1731738729645,0.55,3123.9,3123.4,0.403683]
[1731738730515,0.55,3123.9,3123.3,4.03672]
[1731738730710,3.75113,3123.9,3123.3,4.03672]
[1731738733732,3.20125,3123.8,3123.3,0.835]
[1731738733905,3.75113,3123.9,3123.3,0.835]
[1731738735602,3.20123,3123.8,3123.3,0.835]
[1731738737016,3.20123,3123.8,3123.1,0.8272]
[1731738737017,0.55,3123.5,3123.1,0.8272]
[1731738737243,0.55,3123.2,3122.2,0.8272]
[1731738737459,0.55,3123.0,3122.2,4.02998]
[1731738737660,3.75206,3123.0,3122.3,0.45309972]
[1731738737832,3.20225,3122.8,3122.3,0.45309972]
[1731738738967,3.20225,3122.8,3122.2,4.02998]
[1731738738968,3.20259,3122.5,3122.2,0.8272]
[1731738739460,3.20259,3122.5,3122.1,0.50101718]
[1731738739662,3.20279,3122.3,3122.0,0.8134]
[1731738740021,3.20279,3122.3,3121.7,4.01676]
[1731738740221,3.20304,3122.1,3121.6,0.50109064]
[1731738740451,2.87658028,3122.4,3121.5,0.8134]
[1731738740452,3.20328,3121.8,3121.5,0.8134]
[1731738740648,3.20338,3121.7,3121.2,0.8134]
[1731738741061,2.87658028,3122.1,3121.2,0.8134]
[1731738741062,3.20317,3121.9,3121.2,0.8134]
[1731738741224,3.20317,3121.9,3121.2,4.01728]
[1731738741423,2.87658028,3122.1,3121.2,0.8134]
[1731738741671,3.20338,3121.7,3121.2,0.8134]
[1731738742156,3.20328,3121.8,3121.2,0.8134]
[1731738742463,3.20338,3121.7,3121.2,0.8134]
[1731738742637,3.20338,3121.7,3121.2,3.8134]
[1731738742846,3.20338,3121.7,3121.2,4.515139]
[1731738743170,3.20318,3121.9,3121.2,4.515139]
[1731738743335,3.20318,3121.9,3121.2,4.719019]
[1731738743522,3.75307,3122.0,3121.3,3.20377]
[1731738743974,3.75297,3122.1,3121.3,3.20377]
[1731738744125,3.75297,3122.1,3121.3,3.9960589]
[1731738744320,3.20308,3122.0,3121.4,3.20369]
[1731738744522,3.523627,3122.7,3121.4,4.02889]
[1731738744523,3.20264,3122.5,3121.4,4.02889]
[1731738744828,3.20276,3122.3,3121.6,3.20348]
[1731738745254,3.20288,3122.2,3121.6,3.20348]
[1731738745480,3.20288,3122.2,3121.4,4.02889]
[1731738745852,3.20319,3121.9,3121.4,3.8252]
[1731738746063,3.20326,3121.9,3121.4,0.8252]
[1731738746260,3.20329,3121.8,3121.4,0.8252]
[1731738747251,3.578322,3122.1,3121.0,3.20407]
[1731738747252,3.20359,3121.5,3121.0,0.8252]
[1731738747654,0.55,3121.4,3120.7,0.7907]
[1731738747887,3.2041,3121.0,3120.4,0.7907]
[1731738748653,3.2042,3120.9,3120.4,0.7907]
[1731738748999,3.75405,3121.1,3120.4,3.7907]
[1731738750671,3.75405,3121.1,3120.5,3.0]
[1731738751080,3.2042,3120.9,3120.4,0.7907]
[1731738751289,0.55,3120.8,3120.4,0.7907]
[1731738752366,3.20429,3120.9,3120.4,0.7907]
[1731738752564,0.55,3120.8,3120.4,0.7907]
[1731738752768,0.55,3120.8,3120.2,3.9956]
[1731738753096,3.2041,3121.0,3120.4,3.20462]
[1731738753097,0.55,3121.0,3120.4,3.20462]
[1731738753303,3.75414,3121.0,3120.2,3.99554]
[1731738753588,4.47175097,3121.0,3120.3,3.20476]
[1731738753995,0.55,3120.8,3120.3,3.20476]